fUST/lending_fUST_20250628
["ID","MTS","AMOUNT","RATE_DAILY","PERIOD"]
[368329911,1751123443462,-460.0,0.00020547,2]
[368329912,1751123443471,-1347.97,0.00020547,2]
[368329913,1751123443480,-460.0,0.00020547,2]
[368329914,1751123443491,-1935.64,0.00020547,2]
[368329915,1751123443500,-460.0,0.00020547,2]
[368329916,1751123443510,-482.36,0.00020547,2]
[368329917,1751123443520,-1395.23,0.00020547,2]
[368329918,1751123443530,-1014.47,0.00020547,2]
[368329919,1751123443542,-460.0,0.00020547,2]
[368329920,1751123443556,-460.0,0.00020547,2]
[368329921,1751123443573,-460.0,0.00020547,2]
[368329922,1751123443584,-992.52,0.00020547,2]
[368329923,1751123443594,-880.19,0.00020547,2]
[368329925,1751123443603,-460.0,0.00020547,2]
[368329927,1751123443613,-2516.66,0.00020547,2]
[368329928,1751123443622,-547.4,0.00020547,2]
[368329929,1751123443632,-460.0,0.00020547,2]
[368329930,1751123443641,-460.0,0.00020547,2]
[368329931,1751123443651,-2434.9,0.00020547,2]
[368329932,1751123443660,-460.0,0.00020547,2]
[368329933,1751123443670,-709.47,0.00020547,2]
[368329934,1751123443680,-460.0,0.00020547,2]
[368329935,1751123443689,-460.0,0.00020547,2]
[368329936,1751123443699,-460.0,0.00020547,2]
[368329937,1751123443708,-479.35,0.00020547,2]
[368329938,1751123443718,-460.0,0.00020547,2]
[368329939,1751123443727,-706.91,0.00020547,2]
[368329940,1751123443737,-2495.3,0.000206,2]
[368329941,1751123443746,-1519.20961787,0.00020625,2]
[368329942,1751123443756,-338.99,0.00020703,2]
[368329943,1751123443766,-3114.69022787,0.00020728,3]
[368329944,1751123443779,-460.0,0.00020821,2]
[368329945,1751123443788,-460.0,0.00020821,2]
[368329946,1751123443797,-460.0,0.00020821,2]
[368329947,1751123443807,-460.0,0.00020821,2]
[368329948,1751123443816,-460.0,0.00020821,2]
[368329949,1751123443825,-460.0,0.00020821,2]
[368329950,1751123443834,-460.0,0.00020821,2]
[368329951,1751123443844,-854.54,0.00020821,2]
[368329952,1751123443853,-871.4,0.00020821,2]
[368329953,1751123443862,-460.0,0.00020821,2]
[368329954,1751123443872,-761.93,0.00020821,2]
[368329955,1751123443881,-961.06,0.00020821,2]
[368329956,1751123443890,-460.0,0.00020821,2]
[368329957,1751123443995,-460.0,0.00020821,2]
[368329958,1751123444018,-460.0,0.00020821,2]
[368329959,1751123444028,-460.0,0.00020821,2]
[368329960,1751123444037,-1060.43,0.00020821,2]
[368329961,1751123444047,-553.01,0.00020821,2]
[368329962,1751123444056,-460.0,0.00020821,2]
[368329963,1751123444065,-460.0,0.00020821,2]
[368329964,1751123444074,-718.98,0.00020821,2]
[368329965,1751123444084,-1107.72,0.00020821,2]
[368329966,1751123444093,-460.0,0.00020821,2]
[368329967,1751123444102,-460.0,0.00020821,2]
[368329968,1751123444112,-965.51,0.00020821,2]
[368329969,1751123444121,-460.0,0.00020821,2]
[368329970,1751123444131,-460.0,0.00020821,2]
[368329971,1751123444140,-460.0,0.00020821,2]
[368329972,1751123444150,-1347.97,0.00020821,2]
[368329973,1751123444160,-460.0,0.00020821,2]
[368329974,1751123444169,-1935.64,0.00020821,2]
[368329975,1751123444178,-460.0,0.00020821,2]
[368329976,1751123444187,-482.36,0.00020821,2]
[368329977,1751123444198,-1395.23,0.00020821,2]
[368329978,1751123444207,-1014.47,0.00020821,2]
[368329979,1751123444216,-525.18633602,0.00020821,2]
[368329980,1751123444226,-460.0,0.00020821,2]
[368329981,1751123444235,-562.80643297,0.00020821,2]
[368329982,1751123444244,-992.52,0.00020821,2]
[368329983,1751123444253,-880.19,0.00020821,2]
[368329984,1751123444263,-460.0,0.00020821,2]
[368329985,1751123444273,-2516.66,0.00020821,2]
[368329986,1751123444282,-547.4,0.00020821,2]
[368329987,1751123444291,-460.0,0.00020821,2]
[368329988,1751123444300,-583.54815558,0.00020821,2]
[368329989,1751123444309,-2434.9,0.00020821,2]
[368329990,1751123444318,-460.0,0.00020821,2]
[368329991,1751123444327,-709.47,0.00020821,2]
[368329992,1751123444336,-460.0,0.00020821,2]
[368329993,1751123444346,-460.0,0.00020821,2]
[368329994,1751123444355,-221.01686571,0.00020821,2]
[368329995,1751123444364,-479.35,0.00020821,2]
[368329996,1751123444374,-460.0,0.00020821,2]
[368329997,1751123444383,-237.0,0.00020914,2]
[368329998,1751123444392,-3114.69022787,0.00020934,4]
[368329999,1751123444402,-151.0,0.00020986,2]
[368330000,1751123444411,-151.0,0.00020986,2]
[368330001,1751123444420,-151.0,0.00020986,2]
[368330002,1751123444430,-151.0,0.00020986,2]
[368330003,1751123444439,-151.0,0.00020986,2]
[368330004,1751123444449,-151.0,0.00020986,2]
[368330005,1751123444458,-155.72989665,0.00020986,2]
[368330006,1751123444468,-151.0,0.00020986,2]
[368330007,1751123444478,-151.0,0.00020986,2]
[368330008,1751123444488,-198.0,0.00020986,2]
[368330009,1751123444498,-151.0,0.00020986,2]
[368330010,1751123444508,-263.19621546,0.00021013,2]
[368330011,1751123444517,-151.0,0.00021013,2]
[368330012,1751123444526,-151.0,0.00021013,2]
[368330013,1751123444536,-151.0,0.00021013,2]
[368330014,1751123444546,-151.0,0.00021013,2]
[368330015,1751123444555,-222.93240191,0.00021013,2]
[368330016,1751123444565,-151.0,0.00021013,2]
[368330017,1751123444574,-151.0,0.00021013,2]
[368330018,1751123444584,-151.0,0.00021041,2]
[368330019,1751123444594,-151.0,0.00021041,2]
[368330020,1751123444604,-151.0,0.00021041,2]
[368330021,1751123444613,-245.0,0.00021041,2]
[368330022,1751123444623,-198.0,0.00021041,2]
[368330023,1751123444633,-198.0,0.00021041,2]
[368330024,1751123444642,-523.26130187,0.00021095,2]
[368330025,1751123444651,-460.0,0.00021095,2]
[368330026,1751123444660,-460.0,0.00021095,2]
[368330027,1751123444670,-460.0,0.00021095,2]
[368330028,1751123444679,-460.0,0.00021095,2]
[368330029,1751123444688,-569.65,0.00021095,2]
[368330030,1751123444698,-854.54,0.00021095,2]
[368330031,1751123444707,-871.4,0.00021095,2]
[368330032,1751123444716,-460.0,0.00021095,2]
[368330033,1751123444726,-761.93,0.00021095,2]
[368330034,1751123444735,-961.06,0.00021095,2]
[368330035,1751123444744,-460.0,0.00021095,2]
[368330036,1751123444753,-460.0,0.00021095,2]
[368330037,1751123444762,-460.0,0.00021095,2]
[368330038,1751123444777,-460.0,0.00021095,2]
[368330039,1751123444786,-1060.43,0.00021095,2]
[368330040,1751123444795,-553.01,0.00021095,2]
[368330041,1751123444804,-460.0,0.00021095,2]
[368330042,1751123444813,-460.0,0.00021095,2]
[368330043,1751123444822,-718.98,0.00021095,2]
[368330044,1751123444831,-1107.72,0.00021095,2]
[368330045,1751123444840,-460.0,0.00021095,2]
[368330046,1751123444849,-460.0,0.00021095,2]
[368330047,1751123444858,-965.51,0.00021095,2]
[368330048,1751123444867,-460.0,0.00021095,2]
[368330049,1751123444877,-460.0,0.00021095,2]
[368330050,1751123444886,-195.20681827,0.00021095,2]
[368330051,1751123444895,-1347.97,0.00021095,2]
[368330052,1751123444904,-460.0,0.00021095,2]
[368330053,1751123444914,-1935.64,0.00021095,2]
[368330054,1751123444924,-460.0,0.00021095,2]
[368330055,1751123444933,-482.36,0.00021095,2]
[368330056,1751123444943,-1395.23,0.00021095,2]
[368330057,1751123444952,-1014.47,0.00021095,2]
[368330058,1751123444962,-460.0,0.00021095,2]
[368330059,1751123444971,-992.52,0.00021095,2]
[368330060,1751123444980,-880.19,0.00021095,2]
[368330061,1751123444989,-460.0,0.00021095,2]
[368330062,1751123444999,-2516.66,0.00021095,2]
[368330063,1751123445008,-547.4,0.00021095,2]
[368330064,1751123445018,-460.0,0.00021095,2]
[368330065,1751123445027,-2434.9,0.00021095,2]
[368330066,1751123445036,-460.0,0.00021095,2]
[368330067,1751123445046,-709.47,0.00021095,2]
[368330068,1751123445055,-460.0,0.00021095,2]
[368330069,1751123445064,-460.0,0.00021095,2]
[368330070,1751123445073,-479.35,0.00021095,2]
[368330071,1751123445082,-460.0,0.00021095,2]
[368330072,1751123445091,-237.0,0.00021114,2]
[368330073,1751123445101,-3114.69022787,0.00021141,4]
[368330074,1751123445111,-366.0,0.00021177,2]
[368330075,1751123445120,-237.0,0.00021206,2]
[368330076,1751123445131,-160.0,0.0002121,3]
[368330077,1751123445140,-151.0,0.000213,3]
[368330078,1751123445150,-3114.69022787,0.00021348,5]
[368330079,1751123445159,-1519.20961787,0.0002135,2]
[368330080,1751123445168,-460.0,0.00021369,2]
[368330081,1751123445177,-460.0,0.00021369,2]
[368330082,1751123445186,-460.0,0.00021369,2]
[368330083,1751123445196,-525.70259143,0.00021369,2]
[368330084,1751123445205,-854.54,0.00021369,2]
[368330085,1751123445214,-871.4,0.00021369,2]
[368330086,1751123445223,-460.0,0.00021369,2]
[368330087,1751123445232,-761.93,0.00021369,2]
[368330088,1751123445241,-961.06,0.00021369,2]
[368330089,1751123445251,-460.0,0.00021369,2]
[368330090,1751123445260,-460.0,0.00021369,2]
[368330091,1751123445269,-460.0,0.00021369,2]
[368330092,1751123445279,-460.0,0.00021369,2]
[368330093,1751123445288,-1060.43,0.00021369,2]
[368330094,1751123445298,-553.01,0.00021369,2]
[368330095,1751123445307,-460.0,0.00021369,2]
[368330096,1751123445317,-460.0,0.00021369,2]
[368330097,1751123445327,-718.98,0.00021369,2]
[368330098,1751123445337,-1107.72,0.00021369,2]
[368330099,1751123445347,-460.0,0.00021369,2]
[368330100,1751123445356,-558.54562485,0.00021369,2]
[368330101,1751123445365,-965.51,0.00021369,2]
[368330102,1751123445374,-460.0,0.00021369,2]
[368330103,1751123445383,-460.0,0.00021369,2]
[368330104,1751123445393,-1347.97,0.00021369,2]
[368330105,1751123445402,-460.0,0.00021369,2]
[368330106,1751123445412,-1935.64,0.00021369,2]
[368330107,1751123445421,-460.0,0.00021369,2]
[368330108,1751123445431,-482.36,0.00021369,2]
[368330109,1751123445441,-1395.23,0.00021369,2]
[368330110,1751123445450,-1014.47,0.00021369,2]
[368330111,1751123445460,-460.0,0.00021369,2]
[368330112,1751123445469,-992.52,0.00021369,2]
[368330113,1751123445478,-880.19,0.00021369,2]
[368330115,1751123445488,-460.0,0.00021369,2]
[368330116,1751123445497,-2516.66,0.00021369,2]
[368330117,1751123445507,-547.4,0.00021369,2]
[368330118,1751123445517,-460.0,0.00021369,2]
[368330119,1751123445526,-2434.9,0.00021369,2]
[368330120,1751123445536,-460.0,0.00021369,2]
[368330121,1751123445546,-709.47,0.00021369,2]
[368330122,1751123445555,-460.0,0.00021369,2]
[368330123,1751123445565,-460.0,0.00021369,2]
[368330124,1751123445575,-479.35,0.00021369,2]
[368330125,1751123445584,-9619.11515,0.00021528,2]
[368330126,1751123445593,-207.4,0.00021529,2]
[368330127,1751123445603,-500.0,0.00021529,2]
[368330128,1751123445612,-5000.0,0.00021529,2]
[368330129,1751123445621,-472.06,0.00021529,2]
[368330130,1751123445631,-2242.47150122,0.00021529,2]
[368330131,1751123445640,-1800.0,0.00021529,2]
[368330132,1751123445649,-690.642,0.00021529,2]
[368330133,1751123445659,-1800.0,0.00021529,2]
[368330134,1751123445668,-1800.0,0.00021529,2]
[368330136,1751123445678,-1800.0,0.00021529,2]
[368330137,1751123445687,-1800.0,0.00021529,2]
[368330138,1751123445696,-1800.0,0.00021529,2]
[368330140,1751123445705,-1800.0,0.00021529,2]
[368330141,1751123445715,-1800.0,0.00021529,2]
[368330142,1751123445724,-1800.0,0.00021529,2]
[368330143,1751123445733,-1800.0,0.00021529,2]
[368330144,1751123445743,-1800.0,0.00021529,2]
[368330145,1751123445752,-1800.0,0.00021529,2]
[368330146,1751123445761,-1800.0,0.00021529,2]
[368330147,1751123445773,-1800.0,0.00021529,2]
[368330148,1751123445783,-1800.0,0.00021529,2]
[368330149,1751123445791,-1800.0,0.00021529,2]
[368330150,1751123445801,-1800.0,0.00021529,2]
[368330151,1751123445811,-1800.0,0.00021529,2]
[368330152,1751123445820,-3114.69022787,0.00021555,5]
[368330153,1751123445830,-500.0,0.0002156,2]
[368330154,1751123445839,-506.49943093,0.00021584,2]
[368330155,1751123445850,-151.0,0.000216,3]
[368330156,1751123445860,-160.0,0.00021607,2]
[368330157,1751123445870,-587.0,0.0002163,2]
[368330158,1751123445879,-460.0,0.00021643,2]
[368330159,1751123445888,-460.0,0.00021643,2]
[368330160,1751123445897,-460.0,0.00021643,2]
[368330161,1751123445907,-854.54,0.00021643,2]
[368330162,1751123445917,-871.4,0.00021643,2]
[368330163,1751123445926,-460.0,0.00021643,2]
[368330164,1751123445935,-761.93,0.00021643,2]
[368330165,1751123445944,-961.06,0.00021643,2]
[368330166,1751123445953,-460.0,0.00021643,2]
[368330167,1751123445963,-460.0,0.00021643,2]
[368330168,1751123445972,-460.0,0.00021643,2]
[368330169,1751123445981,-460.0,0.00021643,2]
[368330170,1751123445991,-1060.43,0.00021643,2]
[368330172,1751123446000,-553.01,0.00021643,2]
[368330174,1751123446009,-460.0,0.00021643,2]
[368330176,1751123446018,-460.0,0.00021643,2]
[368330178,1751123446028,-718.98,0.00021643,2]
[368330179,1751123446037,-1107.72,0.00021643,2]
[368330181,1751123446046,-460.0,0.00021643,2]
[368330182,1751123446055,-965.51,0.00021643,2]
[368330184,1751123446065,-460.0,0.00021643,2]
[368330186,1751123446075,-460.0,0.00021643,2]
[368330187,1751123446084,-1347.97,0.00021643,2]
[368330189,1751123446093,-460.0,0.00021643,2]
[368330191,1751123446102,-1935.64,0.00021643,2]
[368330192,1751123446112,-460.0,0.00021643,2]
[368330194,1751123446123,-482.36,0.00021643,2]
[368330196,1751123446132,-1395.23,0.00021643,2]
[368330197,1751123446141,-1014.47,0.00021643,2]
[368330199,1751123446150,-460.0,0.00021643,2]
[368330200,1751123446159,-992.52,0.00021643,2]
[368330202,1751123446169,-880.19,0.00021643,2]
[368330204,1751123446178,-460.0,0.00021643,2]
[368330206,1751123446188,-2516.66,0.00021643,2]
[368330207,1751123446198,-547.4,0.00021643,2]
[368330209,1751123446207,-460.0,0.00021643,2]
[368330210,1751123446216,-2434.9,0.00021643,2]
[368330211,1751123446226,-709.47,0.00021643,2]
[368330212,1751123446235,-460.0,0.00021643,2]
[368330213,1751123446245,-460.0,0.00021643,2]
[368330214,1751123446254,-485.68,0.00021643,2]
[368330215,1751123446263,-479.35,0.00021643,2]
[368330216,1751123446273,-4981.79,0.00021644,2]
[368330217,1751123446283,-406.0,0.00021656,2]
[368330218,1751123446291,-421.306,0.00021656,2]
[368330219,1751123446301,-3114.69022787,0.00021762,5]
[368330220,1751123446310,-300.000001,0.0002178,2]
[368330221,1751123446319,-3000.0,0.000218,2]
[368330222,1751123446328,-2495.3,0.000218,2]
[368330223,1751123446338,-3000.0,0.0002181,2]
[368330224,1751123446347,-3000.0,0.0002182,2]
[368330225,1751123446357,-3000.0,0.0002183,2]
[368330226,1751123446366,-3000.0,0.0002184,2]
[368330227,1751123446376,-3000.0,0.0002185,2]
[368330228,1751123446385,-5000.0,0.00021852,2]
[368330229,1751123446395,-3000.0,0.0002186,2]
[368330230,1751123446404,-3000.0,0.0002187,2]
[368330231,1751123446413,-3000.0,0.0002188,2]
[368330232,1751123446422,-3000.0,0.0002189,2]
[368330233,1751123446431,-3000.0,0.000219,2]
[368330234,1751123446440,-151.0,0.000219,4]
[368330235,1751123446450,-3000.0,0.0002191,2]
[368330236,1751123446458,-460.0,0.00021917,2]
[368330237,1751123446467,-460.0,0.00021917,2]
[368330238,1751123446476,-460.0,0.00021917,2]
[368330239,1751123446485,-854.54,0.00021917,2]
[368330240,1751123446495,-871.4,0.00021917,2]
[368330241,1751123446504,-460.0,0.00021917,2]
[368330242,1751123446513,-761.93,0.00021917,2]
[368330243,1751123446522,-961.06,0.00021917,2]
[368330244,1751123446531,-460.0,0.00021917,2]
[368330245,1751123446541,-460.0,0.00021917,2]
[368330246,1751123446551,-460.0,0.00021917,2]
[368330247,1751123446559,-460.0,0.00021917,2]
[368330248,1751123446569,-1060.43,0.00021917,2]
[368330249,1751123446578,-553.01,0.00021917,2]
[368330250,1751123446587,-460.0,0.00021917,2]
[368330251,1751123446598,-460.0,0.00021917,2]
[368330252,1751123446610,-718.98,0.00021917,2]
[368330253,1751123446619,-1107.72,0.00021917,2]
[368330254,1751123446628,-460.0,0.00021917,2]
[368330255,1751123446637,-965.51,0.00021917,2]
[368330256,1751123446647,-460.0,0.00021917,2]
[368330257,1751123446656,-460.0,0.00021917,2]
[368330258,1751123446665,-1347.97,0.00021917,2]
[368330259,1751123446674,-460.0,0.00021917,2]
[368330260,1751123446683,-1935.64,0.00021917,2]
[368330261,1751123446693,-460.0,0.00021917,2]
[368330262,1751123446702,-482.36,0.00021917,2]
[368330263,1751123446711,-1395.23,0.00021917,2]
[368330264,1751123446720,-1014.47,0.00021917,2]
[368330265,1751123446730,-458.72961461,0.00021917,2]
[368330266,1751123446739,-992.52,0.00021917,2]
[368330267,1751123446748,-880.19,0.00021917,2]
[368330268,1751123446757,-460.0,0.00021917,2]
[368330269,1751123446766,-2516.66,0.00021917,2]
[368330270,1751123446779,-547.4,0.00021917,2]
[368330271,1751123446787,-460.0,0.00021917,2]
[368330272,1751123446797,-2434.9,0.00021917,2]
[368330273,1751123446807,-709.47,0.00021917,2]
[368330274,1751123446816,-460.0,0.00021917,2]
[368330275,1751123446826,-460.0,0.00021917,2]
[368330276,1751123446835,-479.35,0.00021917,2]
[368330277,1751123446956,-3000.0,0.0002192,2]
[368330278,1751123446967,-3000.0,0.0002193,2]
[368330279,1751123446976,-3000.0,0.0002194,2]
[368330280,1751123446986,-3000.0,0.0002195,2]
[368330281,1751123446996,-3000.0,0.0002196,2]
[368330282,1751123447005,-3114.69022787,0.00021969,6]
[368330283,1751123447015,-3000.0,0.0002197,2]
[368330284,1751123447025,-1000.0,0.00021972,2]
[368330285,1751123447035,-1000.0,0.00021972,2]
[368330286,1751123447046,-300.0,0.00021972,2]
[368330287,1751123447056,-500.0,0.00021973,2]
[368330288,1751123447065,-500.0,0.00021973,2]
[368330289,1751123447074,-500.0,0.00021973,2]
[368330290,1751123447084,-508.79784952,0.00021973,2]
[368330291,1751123447093,-500.79162839,0.00021973,2]
[368330292,1751123447103,-500.0,0.00021973,2]
[368330293,1751123447112,-500.0,0.00021973,2]
[368330294,1751123447121,-500.0,0.00021973,2]
[368330295,1751123447131,-500.0,0.00021973,2]
[368330296,1751123447140,-500.0,0.00021973,2]
[368330297,1751123447151,-500.0,0.00021973,2]
[368330298,1751123447160,-3000.0,0.0002198,2]
[368330299,1751123447170,-5549.612995,0.0002199,2]
[368330300,1751123447179,-2780.28,0.00022,2]
[368330301,1751123447188,-90514.56,0.00022,7]
[368330302,1751123447197,-7240.11,0.00022,7]
[368330303,1751123447207,-100599.21,0.00022,2]
[368330304,1751123447216,-12564.78152626,0.00022,7]
[368330305,1751123447225,-966.0,0.00022031,2]
[368330306,1751123447235,-2161.0,0.00022031,2]
[368330307,1751123447244,-654.0,0.00022031,2]
[368330308,1751123447253,-366.0,0.00022033,2]
[368330309,1751123447263,-177.41445,0.0002205,7]
[368330310,1751123447272,-1519.20961787,0.00022074,2]
[368330311,1751123447282,-500.0,0.00022108,2]
[368330312,1751123447291,-3114.69022787,0.00022176,6]
[368330313,1751123447301,-2200.0,0.00022179,2]
[368330314,1751123447310,-228.72563251,0.00022191,2]
[368330315,1751123447320,-460.0,0.00022191,2]
[368330316,1751123447329,-460.0,0.00022191,2]
[368330317,1751123447339,-854.54,0.00022191,2]
[368330318,1751123447348,-871.4,0.00022191,2]
[368330319,1751123447358,-460.0,0.00022191,2]
[368330320,1751123447367,-761.93,0.00022191,2]
[368330321,1751123447376,-961.06,0.00022191,2]
[368330322,1751123447386,-400.56755404,0.00022191,2]
[368330323,1751123447396,-460.0,0.00022191,2]
[368330324,1751123447405,-460.0,0.00022191,2]
[368330325,1751123447414,-460.0,0.00022191,2]
[368330326,1751123447423,-1060.43,0.00022191,2]
[368330327,1751123447433,-553.01,0.00022191,2]
[368330328,1751123447443,-460.0,0.00022191,2]
[368330329,1751123447451,-460.0,0.00022191,2]
[368330330,1751123447460,-718.98,0.00022191,2]
[368330331,1751123447470,-1107.72,0.00022191,2]
[368330332,1751123447479,-460.0,0.00022191,2]
[368330333,1751123447488,-965.51,0.00022191,2]
[368330334,1751123447498,-460.0,0.00022191,2]
[368330335,1751123447507,-460.0,0.00022191,2]
[368330336,1751123447516,-1347.97,0.00022191,2]
[368330337,1751123447526,-460.0,0.00022191,2]
[368330338,1751123447536,-1935.64,0.00022191,2]
[368330339,1751123447546,-460.0,0.00022191,2]
[368330340,1751123447556,-482.36,0.00022191,2]
[368330341,1751123447566,-1395.23,0.00022191,2]
[368330342,1751123447575,-1014.47,0.00022191,2]
[368330343,1751123447586,-992.52,0.00022191,2]
[368330344,1751123447595,-880.19,0.00022191,2]
[368330345,1751123447605,-460.0,0.00022191,2]
[368330346,1751123447614,-2516.66,0.00022191,2]
[368330347,1751123447623,-547.4,0.00022191,2]
[368330348,1751123447633,-460.0,0.00022191,2]
[368330349,1751123447643,-2434.9,0.00022191,2]
[368330350,1751123447652,-709.47,0.00022191,2]
[368330351,1751123447661,-460.0,0.00022191,2]
[368330352,1751123447670,-460.0,0.00022191,2]
[368330353,1751123447679,-479.35,0.00022191,2]
[368330354,1751123447688,-155.18730198,0.00022192,2]
[368330355,1751123447698,-155.18730198,0.00022192,2]
[368330356,1751123447707,-500.462,0.00022194,2]
[368330357,1751123447716,-151.0,0.000223,6]
[368330358,1751123447725,-1001.263524,0.000223,2]
[368330359,1751123447735,-732.341235,0.00022356,2]
[368330360,1751123447745,-290.888074,0.00022437,4]
[368330361,1751123447754,-460.0,0.00022465,2]
[368330362,1751123447763,-460.0,0.00022465,2]
[368330363,1751123447777,-854.54,0.00022465,2]
[368330364,1751123447787,-871.4,0.00022465,2]
[368330365,1751123447796,-460.0,0.00022465,2]
[368330366,1751123447805,-761.93,0.00022465,2]
[368330367,1751123447814,-961.06,0.00022465,2]
[368330368,1751123447824,-460.0,0.00022465,2]
[368330369,1751123447833,-460.0,0.00022465,2]
[368330370,1751123447842,-559.81635969,0.00022465,2]
[368330371,1751123447851,-1060.43,0.00022465,2]
[368330372,1751123447861,-553.01,0.00022465,2]
[368330373,1751123447870,-460.0,0.00022465,2]
[368330374,1751123447879,-460.0,0.00022465,2]
[368330375,1751123447889,-718.98,0.00022465,2]
[368330376,1751123447898,-1107.72,0.00022465,2]
[368330377,1751123447907,-460.0,0.00022465,2]
[368330378,1751123447917,-965.51,0.00022465,2]
[368330379,1751123447926,-460.0,0.00022465,2]
[368330380,1751123447935,-460.0,0.00022465,2]
[368330381,1751123447945,-1347.97,0.00022465,2]
[368330382,1751123447954,-460.0,0.00022465,2]
[368330383,1751123447963,-1935.64,0.00022465,2]
[368330384,1751123447973,-460.0,0.00022465,2]
[368330385,1751123447982,-1395.23,0.00022465,2]
[368330386,1751123447991,-482.36,0.00022465,2]
[368330387,1751123448000,-1014.47,0.00022465,2]
[368330388,1751123448009,-992.52,0.00022465,2]
[368330389,1751123448019,-880.19,0.00022465,2]
[368330390,1751123448028,-460.0,0.00022465,2]
[368330391,1751123448037,-2516.66,0.00022465,2]
[368330392,1751123448046,-547.4,0.00022465,2]
[368330393,1751123448056,-460.0,0.00022465,2]
[368330394,1751123448065,-2434.9,0.00022465,2]
[368330395,1751123448074,-709.47,0.00022465,2]
[368330396,1751123448083,-464.80949343,0.00022465,2]
[368330397,1751123448093,-460.0,0.00022465,2]
[368330398,1751123448102,-479.35,0.00022465,2]
[368330399,1751123448112,-2000.0,0.000225,2]
[368330400,1751123448121,-2000.0,0.000225,2]
[368330401,1751123448131,-151.0,0.0002251,5]
[368330402,1751123448140,-1000.0,0.00022521,2]
[368330403,1751123448149,-1000.0,0.00022521,2]
[368330404,1751123448158,-500.0,0.00022521,2]
[368330405,1751123448167,-1000.0,0.00022521,2]
[368330406,1751123448177,-1002.472439,0.00022521,2]
[368330407,1751123448187,-1000.0,0.00022521,2]
[368330408,1751123448196,-1000.0,0.00022521,2]
[368330409,1751123448205,-539.9007463,0.00022521,2]
[368330410,1751123448215,-1000.0,0.00022521,2]
[368330411,1751123448224,-151.0,0.000226,10]
[368330412,1751123448233,-249.859669,0.00022603,2]
[368330413,1751123448242,-37427.68668624,0.00022671,2]
[368330414,1751123448252,-151.0,0.00022703,6]
[368330415,1751123448261,-201.0,0.0002273,5]
[368330416,1751123448270,-206.0,0.00022739,2]
[368330417,1751123448280,-206.0,0.00022739,2]
[368330418,1751123448288,-460.0,0.00022739,2]
[368330419,1751123448298,-497.58968478,0.00022739,2]
[368330420,1751123448307,-854.54,0.00022739,2]
[368330421,1751123448316,-871.4,0.00022739,2]
[368330422,1751123448325,-460.0,0.00022739,2]
[368330423,1751123448334,-761.93,0.00022739,2]
[368330424,1751123448344,-961.06,0.00022739,2]
[368330425,1751123448353,-460.0,0.00022739,2]
[368330426,1751123448362,-355.75506741,0.00022739,2]
[368330427,1751123448371,-1060.43,0.00022739,2]
[368330428,1751123448380,-553.01,0.00022739,2]
[368330429,1751123448390,-460.0,0.00022739,2]
[368330430,1751123448399,-591.0527195,0.00022739,2]
[368330431,1751123448408,-718.98,0.00022739,2]